bitfinex/quotes_BTCUSD_20250903
["timestamp","ask_amount","ask_price","bid_price","bid_amount"]
[1756931062599,0.00406,112270.0,112260.0,0.4285168]
[1756931063211,0.0021,112270.0,112260.0,0.4314468]
[1756931063594,0.00406,112270.0,112260.0,0.4285168]
[1756931063804,0.0021,112270.0,112260.0,0.4314468]
[1756931067533,0.0021,112270.0,112260.0,0.40467124]
[1756931078777,0.00425,112270.0,112260.0,0.40174124]
[1756931078982,0.00725,112270.0,112260.0,0.40174124]
[1756931079399,0.00425,112270.0,112260.0,0.40174124]
[1756931083074,0.0021,112270.0,112260.0,0.40490124]
[1756931083281,0.0021,112270.0,112260.0,0.88531791]
[1756931084311,0.0021,112270.0,112260.0,0.99817272]
[1756931084719,0.0021,112270.0,112260.0,1.10461176]
[1756931085343,0.0021,112270.0,112260.0,0.62419509]
[1756931085582,0.0021,112270.0,112260.0,1.10461176]
[1756931093599,0.0021,112270.0,112260.0,1.50461176]
[1756931103699,0.0021,112270.0,112260.0,1.50457176]
[1756931103888,0.00425,112270.0,112260.0,1.50141176]
[1756931104570,0.00725,112270.0,112260.0,1.50141176]
[1756931104768,0.00725,112270.0,112260.0,1.35281176]
[1756931104998,0.00725,112270.0,112260.0,1.50141176]
[1756931105251,0.00725,112270.0,112260.0,0.62099509]
[1756931108551,0.00725,112270.0,112260.0,1.10141176]
[1756931109694,0.00425,112270.0,112260.0,1.10141176]
[1756931110040,0.00728,112270.0,112260.0,0.3784991]
[1756931110252,0.00728,112270.0,112260.0,0.50028513]
[1756931119448,0.00728,112270.0,112260.0,0.50239513]
[1756931120106,0.00425,112270.0,112260.0,0.50239513]
[1756931124619,0.0021,112270.0,112260.0,0.9860618]
[1756931135629,0.0021,112270.0,112260.0,1.22608569]
[1756931148570,0.0021,112270.0,112260.0,1.22283569]
[1756931148783,0.00727,112270.0,112260.0,0.35383513]
[1756931148990,0.00727,112270.0,112260.0,1.22279569]
[1756931151592,0.00727,112270.0,112260.0,0.86257541]
[1756931151808,0.00727,112270.0,112260.0,0.86046541]
[1756931152893,0.00727,112270.0,112260.0,0.86247541]
[1756931153307,0.00727,112270.0,112260.0,1.22269569]
[1756931154679,0.00408,112270.0,112260.0,1.22269569]
[1756931154891,0.00727,112270.0,112260.0,0.50225513]
[1756931155094,0.00727,112270.0,112260.0,1.24947119]
[1756931155508,0.00408,112270.0,112260.0,1.24947119]
[1756931157978,0.00408,112270.0,112260.0,1.10095119]
[1756931158210,0.00408,112270.0,112260.0,0.88921091]
[1756931163137,0.0021,112270.0,112260.0,0.89216091]
[1756931163557,0.00408,112270.0,112260.0,0.88921091]
[1756931167838,0.0021,112270.0,112260.0,1.25238119]
[1756931169600,0.0021,112270.0,112260.0,1.68429718]
[1756931169774,0.0021,112270.0,112260.0,1.60463211]
[1756931169981,0.0021,112270.0,112260.0,1.71616321]
[1756931171163,0.0021,112270.0,112260.0,2.11616321]
[1756931171818,0.0021,112270.0,112260.0,2.36485239]
[1756931172248,0.00072121,112270.0,112260.0,2.36485239]
[1756931172677,0.00072121,112270.0,112260.0,2.36385239]
[1756931173312,0.00072121,112270.0,112260.0,2.36085239]
[1756931173655,0.00072121,112270.0,112260.0,2.36685239]
[1756931174198,0.00072121,112270.0,112260.0,2.36785239]
[1756931174413,0.00072121,112270.0,112260.0,2.47931992]
[1756931174903,0.00072121,112270.0,112260.0,2.47831992]
[1756931175130,0.00072121,112270.0,112260.0,2.48331992]
[1756931179163,0.00072121,112270.0,112260.0,2.48327992]
[1756931180589,0.00072121,112270.0,112260.0,2.33483992]
[1756931180856,0.00072121,112270.0,112260.0,2.48327992]
[1756931183537,1e-08,112270.0,112260.0,2.53793555]
[1756931190185,1e-08,112270.0,112260.0,2.38949555]
[1756931190398,1e-08,112270.0,112260.0,2.53789555]
[1756931191211,1e-08,112270.0,112260.0,2.75189555]
[1756931195678,1e-08,112270.0,112260.0,2.15132197]
[1756931196435,1e-08,112270.0,112260.0,2.03985444]
[1756931196636,1e-08,112270.0,112260.0,1.89145444]
[1756931196846,1e-08,112270.0,112260.0,2.03985444]
[1756931199529,0.00306,112290.0,112280.0,0.17812611]
[1756931199789,0.00306,112290.0,112280.0,1.31822221]
[1756931200009,0.00513,112290.0,112280.0,1.32037221]
[1756931200225,0.00513,112290.0,112280.0,1.26744699]
[1756931200418,0.00513,112290.0,112280.0,1.66529699]
[1756931200917,0.00513,112290.0,112280.0,1.70959837]
[1756931201221,0.00207,112290.0,112280.0,1.70959837]
[1756931201425,0.00207,112290.0,112280.0,1.71359837]
[1756931201553,0.00501,112290.0,112280.0,1.71359837]
[1756931201750,0.00501,112290.0,112280.0,1.82516837]
[1756931202327,0.00207,112290.0,112280.0,1.82516837]
[1756931203082,0.00294,112300.0,112290.0,0.19904907]
[1756931203306,0.00294,112300.0,112290.0,1.06766453]
[1756931203506,0.00501,112300.0,112290.0,1.06766453]
[1756931203783,0.00501,112300.0,112290.0,1.0944309]
[1756931204411,0.00501,112300.0,112290.0,1.4944309]
[1756931204653,0.00501,112300.0,112290.0,1.4964309]
[1756931204857,0.00501,112300.0,112290.0,1.4994309]
[1756931206958,0.00501,112300.0,112290.0,1.50817952]
[1756931211335,0.00501,112300.0,112290.0,1.84817952]
[1756931211556,0.00207,112300.0,112290.0,1.85032952]
[1756931212256,0.00207,112300.0,112290.0,1.70192952]
[1756931212469,0.00501,112300.0,112290.0,1.85028952]
[1756931212675,0.00501,112300.0,112290.0,1.21969226]
[1756931212843,0.00501,112300.0,112290.0,1.84813952]
[1756931219531,0.00207,112300.0,112290.0,1.85028952]
[1756931220123,0.00207,112300.0,112290.0,1.85218952]
[1756931220326,0.00294,112310.0,112300.0,0.19903321]
[1756931220524,0.00294,112310.0,112300.0,0.82748047]
[1756931220743,0.00501,112310.0,112300.0,0.82748047]
[1756931221006,0.00501,112310.0,112300.0,0.85424657]
[1756931221548,0.00547963,112310.0,112300.0,0.85424657]
[1756931221749,0.00547963,112310.0,112300.0,0.85524657]
[1756931222583,0.00547963,112310.0,112300.0,0.85624657]
[1756931223019,0.00547963,112310.0,112300.0,0.85839657]
[1756931223395,0.00547963,112310.0,112300.0,0.85624657]
[1756931224049,0.00547963,112310.0,112300.0,0.37611931]
[1756931225834,0.00547963,112310.0,112300.0,0.22779931]
[1756931226068,0.00547963,112310.0,112300.0,0.37611931]
[1756931230407,0.00547963,112310.0,112300.0,0.45585152]
[1756931231976,0.00547963,112310.0,112300.0,0.37611931]
[1756931232416,0.00547963,112310.0,112300.0,0.45585152]
[1756931232623,0.00547963,112310.0,112300.0,0.45775152]
[1756931237510,0.00547963,112310.0,112300.0,0.52639152]
[1756931240467,0.00547963,112310.0,112300.0,0.52855152]
[1756931242537,0.00253963,112310.0,112300.0,0.52855152]
[1756931246252,0.00253963,112310.0,112300.0,1.00863878]
[1756931248284,0.00046963,112310.0,112300.0,1.00863878]
[1756931248486,0.00046963,112310.0,112300.0,1.01180878]
[1756931255889,0.00046963,112310.0,112300.0,0.53172152]
[1756931256106,0.00046963,112310.0,112300.0,1.01180878]
[1756931257581,0.00046963,112310.0,112300.0,0.53172152]
[1756931257790,0.00046963,112310.0,112300.0,0.89172787]
[1756931258218,0.00046963,112310.0,112300.0,1.34365021]
[1756931258891,0.00046963,112310.0,112300.0,1.74365021]
[1756931259748,0.00046963,112310.0,112300.0,1.34365021]
[1756931260411,0.00046963,112310.0,112300.0,1.74365021]
[1756931263657,0.00046963,112310.0,112300.0,1.02363751]
[1756931263886,0.00046963,112310.0,112300.0,1.74365021]
[1756931265057,0.00046963,112310.0,112300.0,1.34365021]
[1756931265570,0.00046963,112310.0,112300.0,1.74365021]
[1756931270870,0.00046963,112310.0,112300.0,1.34365021]
[1756931274910,0.00046963,112310.0,112300.0,1.74365021]
[1756931275575,0.00046963,112310.0,112300.0,1.34365021]
[1756931275983,0.00046963,112310.0,112300.0,1.74365021]
[1756931277925,0.00046963,112310.0,112300.0,1.02363751]
[1756931278082,0.00046963,112310.0,112300.0,1.74365021]
[1756931279433,0.00046963,112310.0,112300.0,1.19513021]
[1756931279646,0.00046963,112310.0,112300.0,1.34032021]
[1756931279841,0.00046963,112310.0,112300.0,1.19196021]
[1756931280074,0.00561963,112310.0,112300.0,0.52623152]
[1756931280311,0.00561963,112310.0,112300.0,0.5052927]
[1756931280522,0.00561963,112310.0,112300.0,0.42556049]
[1756931285550,0.00561963,112310.0,112300.0,0.78556684]
[1756931287517,0.00561963,112310.0,112300.0,0.42556049]
[1756931287732,0.00561963,112310.0,112300.0,0.78556684]
[1756931291056,0.00561963,112310.0,112300.0,0.78754684]
[1756931295554,0.00561963,112310.0,112300.0,0.42754049]
[1756931295840,0.00046963,112310.0,112300.0,0.42754049]
[1756931296057,0.00046963,112310.0,112300.0,0.78754684]
[1756931296261,0.00046963,112310.0,112300.0,0.79078684]
[1756931303348,0.00046963,112310.0,112300.0,0.87051905]
[1756931307311,0.00568963,112310.0,112300.0,0.5072327]
[1756931307486,0.00568963,112310.0,112300.0,0.86723905]
[1756931308082,0.00568963,112310.0,112300.0,0.5072327]
[1756931309662,0.00568963,112310.0,112300.0,0.5052527]
[1756931311174,0.00046963,112310.0,112300.0,0.87047905]
[1756931319627,0.00172373,112320.0,112310.0,0.17807853]
[1756931319827,0.00618376,112320.0,112310.0,0.32639853]
[1756931320265,0.00618376,112320.0,112310.0,0.3531654]
[1756931321394,0.00618376,112320.0,112310.0,0.2048454]
[1756931321625,0.00618376,112320.0,112310.0,0.3531654]
[1756931322069,0.66427102,112320.0,112310.0,0.2048454]
[1756931322274,0.66204455,112320.0,112310.0,0.3531654]
[1756931323175,0.66204455,112320.0,112310.0,0.2048454]
[1756931323472,0.66204455,112320.0,112310.0,0.17807853]
[1756931323831,0.66204455,112320.0,112310.0,0.32639853]
[1756931324255,0.68881218,112320.0,112300.0,0.27520202]
[1756931324460,0.68708845,112320.0,112310.0,0.14832]
[1756931325091,0.69009845,112320.0,112310.0,0.32639853]
[1756931328600,0.69009845,112320.0,112310.0,0.14832]
[1756931330081,0.69009845,112320.0,112310.0,0.32639853]
[1756931330285,0.69009845,112320.0,112310.0,0.14832]
[1756931330485,0.21007386,112320.0,112310.0,0.32639853]
[1756931330668,0.69009845,112320.0,112310.0,0.14832]
[1756931331580,0.69009845,112320.0,112310.0,0.32639853]
[1756931333050,0.69009845,112320.0,112310.0,0.14832]
[1756931333280,0.69009845,112320.0,112310.0,0.32639853]
[1756931333684,0.21007386,112320.0,112310.0,0.32639853]
[1756931333906,0.69009845,112320.0,112310.0,0.32639853]
[1756931340382,0.69009845,112320.0,112310.0,0.14832]
[1756931342860,0.69009845,112320.0,112310.0,0.32639853]
[1756931343267,0.69009845,112320.0,112310.0,0.14832]
[1756931344728,0.69009845,112320.0,112310.0,0.32639853]
[1756931345129,0.69009845,112320.0,112310.0,0.32836853]
[1756931348016,0.69009845,112320.0,112310.0,0.15029]
[1756931348243,0.69009845,112320.0,112310.0,0.14832]
[1756931350463,0.17807853,112310.0,112300.0,0.20985202]
[1756931350664,0.17807853,112310.0,112300.0,0.35813202]
[1756931350813,0.17807853,112310.0,112300.0,0.36023202]
[1756931352048,0.17807853,112310.0,112300.0,0.36123202]
[1756931352429,0.180305,112310.0,112300.0,0.36123202]
[1756931352783,0.18929055,112310.0,112300.0,0.36223202]
[1756931353030,0.18706408,112310.0,112300.0,0.36223202]
[1756931353226,0.18706408,112310.0,112300.0,0.21395202]
[1756931353459,0.18706408,112310.0,112300.0,0.36223202]
[1756931353674,0.18911408,112310.0,112300.0,0.21395202]
[1756931353834,0.67208867,112310.0,112300.0,0.17894763]
[1756931354049,0.67208867,112310.0,112300.0,0.35704202]
[1756931354469,0.67208867,112310.0,112300.0,0.20876202]
[1756931354678,0.67208867,112310.0,112300.0,0.35704202]
[1756931355719,0.19206408,112310.0,112300.0,0.35704202]
[1756931356306,0.19206408,112310.0,112300.0,0.35914202]
[1756931356713,0.18012853,112310.0,112300.0,0.35914202]
[1756931356919,0.18012853,112310.0,112300.0,0.36207202]
[1756931357340,0.17807853,112310.0,112300.0,0.33530439]
[1756931357523,0.180305,112310.0,112300.0,0.33530439]
[1756931357920,0.182355,112310.0,112300.0,0.33530439]
[1756931358124,0.18012853,112310.0,112300.0,0.33530439]
[1756931359177,0.17807853,112310.0,112300.0,0.33530439]
[1756931359352,0.182355,112310.0,112300.0,0.33530439]
[1756931359528,0.18012853,112310.0,112300.0,0.33530439]
[1756931362662,0.18012853,112310.0,112300.0,0.36207332]
[1756931363515,0.18012853,112310.0,112300.0,0.33530439]
[1756931363735,0.18012853,112310.0,112300.0,0.33237439]
[1756931364594,0.18307853,112310.0,112300.0,0.33237439]
[1756931364953,0.18307853,112310.0,112300.0,0.18409439]
[1756931365158,0.18307853,112310.0,112300.0,0.33027439]
[1756931365782,0.18307853,112310.0,112300.0,0.35704331]
[1756931366180,0.18307853,112310.0,112300.0,0.35914331]
[1756931366800,0.18307853,112310.0,112300.0,0.33237439]
[1756931368400,0.18012853,112310.0,112300.0,0.33530439]
[1756931369429,0.17807853,112310.0,112300.0,0.33530439]
[1756931369630,0.00222647,112310.0,112300.0,0.33530439]
[1756931370070,0.180305,112310.0,112300.0,0.33530439]
[1756931372205,0.00222647,112310.0,112300.0,0.33530439]
[1756931372409,8.356e-05,112320.0,112310.0,0.17807853]
[1756931372606,0.00231003,112320.0,112310.0,0.18310853]
[1756931373693,0.01128151,112320.0,112310.0,0.18310853]
[1756931375037,0.00231003,112320.0,112310.0,0.18310853]
[1756931378491,0.01110999,112320.0,112310.0,0.18310853]
[1756931380077,0.01314999,112320.0,112310.0,0.18310853]
[1756931381561,0.37317678,112320.0,112310.0,0.18310853]
[1756931381756,0.37095031,112320.0,112310.0,0.18310853]
[1756931382324,0.37095031,112320.0,112310.0,0.33138853]
[1756931382818,0.37095031,112320.0,112310.0,0.18310853]
[1756931383043,0.37095031,112320.0,112310.0,0.32845853]
[1756931384246,0.37095031,112320.0,112310.0,0.33163853]
[1756931386176,0.54901298,112320.0,112310.0,0.33163853]
[1756931390853,0.37095031,112320.0,112310.0,0.33163853]
[1756931391863,0.54901298,112320.0,112310.0,0.33163853]
[1756931393044,0.37095031,112320.0,112310.0,0.33163853]
[1756931393248,0.54901298,112320.0,112310.0,0.33163853]
[1756931393609,0.37095031,112320.0,112310.0,0.33163853]
[1756931395097,0.54901298,112320.0,112310.0,0.33163853]
[1756931395392,0.55198298,112320.0,112310.0,0.18017853]
[1756931395682,0.54901298,112320.0,112310.0,0.32841853]
[1756931396280,0.54901298,112320.0,112310.0,0.33159853]
[1756931399094,0.37095031,112320.0,112310.0,0.33159853]
[1756931400050,0.54901298,112320.0,112310.0,0.33159853]
[1756931400259,0.37095031,112320.0,112310.0,0.33159853]
[1756931400458,0.54901298,112320.0,112310.0,0.18017853]
[1756931400765,0.55198298,112320.0,112310.0,0.32841853]
[1756931400893,0.54901298,112320.0,112310.0,0.32841853]
[1756931401563,0.54901298,112320.0,112310.0,0.33159853]
[1756931402470,0.37095031,112320.0,112310.0,0.33159853]
[1756931402966,0.54901298,112320.0,112310.0,0.33159853]
[1756931403475,0.54901298,112320.0,112310.0,0.32841853]
[1756931403674,0.54299008,112320.0,112310.0,0.32841853]
[1756931403996,0.18296329,112320.0,112310.0,0.32841853]
[1756931404214,0.54299008,112320.0,112310.0,0.32841853]
[1756931405843,0.54299008,112320.0,112310.0,0.18017853]
[1756931406045,0.54596008,112320.0,112310.0,0.32841853]
[1756931406705,0.54299008,112320.0,112310.0,0.32841853]
[1756931407524,0.54596008,112320.0,112310.0,0.32841853]
[1756931408987,0.36789741,112320.0,112310.0,0.32841853]
[1756931409290,0.36492741,112320.0,112310.0,0.32841853]
[1756931409631,0.36492741,112320.0,112310.0,0.33143853]
[1756931412503,0.00490062,112320.0,112310.0,0.33143853]
[1756931412685,0.00508709,112320.0,112310.0,0.33143853]
[1756931413075,0.36511388,112320.0,112310.0,0.35820478]
[1756931413275,0.36501741,112320.0,112310.0,0.35820478]
[1756931413476,0.36288741,112320.0,112310.0,0.33143853]
[1756931415196,0.26288741,112320.0,112310.0,0.33143853]
[1756931415690,0.26501741,112320.0,112310.0,0.33143853]
[1756931417259,0.54806307,112330.0,112320.0,0.17806267]
[1756931417440,0.54806307,112330.0,112320.0,0.18322267]
[1756931417441,0.90696986,112330.0,112320.0,0.18322267]
[1756931417672,0.90696986,112330.0,112320.0,0.18020267]
[1756931418079,0.91021986,112330.0,112320.0,0.18020267]
[1756931418670,0.91121986,112330.0,112320.0,0.18020267]
[1756931418981,0.91221986,112330.0,112320.0,0.18020267]
[1756931419540,0.73417304,112330.0,112320.0,0.18020267]
[1756931421141,0.92105077,112330.0,112320.0,0.18020267]
[1756931421984,0.03089625,112330.0,112320.0,0.18322267]
[1756931422191,0.02876625,112330.0,112320.0,0.54324946]
[1756931422405,0.002,112330.0,112320.0,0.57001335]
[1756931427442,0.01117438,112340.0,112330.0,0.17804682]
[1756931427608,0.0112213,112340.0,112330.0,0.32624682]
[1756931427834,4.692e-05,112340.0,112330.0,0.69143361]
[1756931428033,4.692e-05,112340.0,112330.0,0.71819544]
[1756931428258,4.692e-05,112340.0,112330.0,0.35816865]
[1756931428747,4.692e-05,112340.0,112330.0,0.71819544]
[1756931428895,4.692e-05,112340.0,112330.0,0.71919544]
[1756931429523,4.692e-05,112340.0,112330.0,0.72019544]
[1756931432708,4.692e-05,112340.0,112330.0,0.78863544]
[1756931434576,4.692e-05,112340.0,112330.0,0.79053544]
[1756931440474,4.692e-05,112340.0,112330.0,1.24247822]
[1756931440691,4.692e-05,112340.0,112330.0,0.88245143]
[1756931441505,4.692e-05,112340.0,112330.0,1.40209721]
[1756931445448,4.692e-05,112340.0,112330.0,1.42303603]
[1756931446331,4.692e-05,112340.0,112330.0,1.27483603]
[1756931446570,4.692e-05,112340.0,112330.0,1.42299603]
[1756931446740,4.692e-05,112340.0,112330.0,1.27483603]
[1756931446950,4.692e-05,112340.0,112330.0,1.42299603]
[1756931449437,4.692e-05,112340.0,112330.0,1.27483603]
[1756931449643,4.692e-05,112340.0,112330.0,1.42299603]
[1756931451113,4.692e-05,112340.0,112330.0,1.27483603]
[1756931451315,0.00534692,112340.0,112330.0,1.41997603]
[1756931451520,0.00534692,112340.0,112330.0,0.27714865]
[1756931451745,0.00534692,112340.0,112330.0,0.42530865]
[1756931452927,0.00757339,112340.0,112330.0,0.42530865]
[1756931454594,0.00757339,112340.0,112330.0,0.27714865]
[1756931454752,0.00757339,112340.0,112330.0,0.42530865]
[1756931455417,0.00757339,112340.0,112330.0,0.39854682]
[1756931455608,0.00757339,112340.0,112330.0,0.25038682]
[1756931455813,0.00757339,112340.0,112330.0,0.39854682]
[1756931456013,0.00757339,112340.0,112330.0,0.25038682]
[1756931456218,0.00757339,112340.0,112330.0,0.39854682]
[1756931459536,0.18560436,112340.0,112330.0,0.25038682]
[1756931459780,0.18337789,112340.0,112330.0,0.39850682]
[1756931461640,0.00534692,112340.0,112330.0,0.39850682]
[1756931461855,0.00757339,112340.0,112330.0,0.39850682]
[1756931462476,0.00227339,112340.0,112330.0,0.40362682]
[1756931462677,0.00434339,112340.0,112330.0,0.40362682]
[1756931462881,0.00434339,112340.0,112330.0,0.40059682]
[1756931463104,0.00757339,112340.0,112330.0,0.40059682]
[1756931464024,0.00757339,112340.0,112330.0,0.25038682]
[1756931464230,0.00757339,112340.0,112330.0,0.39850682]
[1756931466503,0.18560436,112340.0,112330.0,0.25038682]
[1756931466712,0.18337789,112340.0,112330.0,0.39850682]
[1756931467558,0.00534692,112340.0,112330.0,0.39850682]
[1756931467740,0.18560436,112340.0,112330.0,0.39850682]
[1756931467911,0.18337789,112340.0,112330.0,0.39850682]
[1756931468813,0.66305046,112340.0,112330.0,0.25038682]
[1756931469013,0.66305046,112340.0,112330.0,0.39850682]
[1756931469230,0.66305046,112340.0,112330.0,0.22046]
[1756931470188,0.75496645,112340.0,112330.0,0.15202]
[1756931474444,0.27529388,112340.0,112330.0,0.33006682]
[1756931474661,0.57163548,112340.0,112330.0,0.33511682]
[1756931474869,0.57358548,112340.0,112330.0,0.33511682]
[1756931475074,0.75161645,112340.0,112330.0,0.33214682]
[1756931475575,0.75469645,112340.0,112330.0,0.33006682]
[1756931476456,0.78146131,112340.0,112330.0,0.33006682]
[1756931479663,0.57163548,112340.0,112330.0,0.33511682]
[1756931479873,0.74966645,112340.0,112330.0,0.33511682]
[1756931480230,0.75161645,112340.0,112330.0,0.33511682]
[1756931480708,0.75161645,112340.0,112330.0,0.33214682]
[1756931480917,0.75469645,112340.0,112330.0,0.33006682]
[1756931482159,0.78146132,112340.0,112330.0,0.33006682]
[1756931482729,0.75469645,112340.0,112330.0,0.33214682]
[1756931483521,0.27194388,112340.0,112330.0,0.33214682]
[1756931483785,4.692e-05,112340.0,112330.0,0.33511682]
[1756931483994,0.00227339,112340.0,112330.0,0.33511682]
[1756931485930,0.18030436,112340.0,112330.0,0.33511682]
[1756931486325,0.00227339,112340.0,112330.0,0.33511682]
[1756931487287,4.692e-05,112340.0,112330.0,0.33511682]
[1756931500239,0.00227339,112340.0,112330.0,0.33511682]
[1756931500852,4.692e-05,112340.0,112330.0,0.33511682]
[1756931503499,0.35992357,112340.0,112330.0,0.33511682]
[1756931505609,4.692e-05,112340.0,112330.0,0.69499347]
[1756931508967,4.692e-05,112340.0,112330.0,0.33511682]
[1756931509179,4.692e-05,112340.0,112330.0,0.69499347]
[1756931510840,0.00227339,112340.0,112330.0,0.69499347]
[1756931511579,4.692e-05,112340.0,112330.0,0.69499347]
[1756931511963,4.692e-05,112340.0,112330.0,0.33511682]
[1756931512207,4.692e-05,112340.0,112330.0,0.69499347]
[1756931512578,4.692e-05,112340.0,112330.0,0.33511682]
[1756931515793,4.692e-05,112340.0,112330.0,0.36187745]
[1756931524605,4.692e-05,112340.0,112330.0,0.7217541]
[1756931526628,4.692e-05,112340.0,112330.0,0.7901941]
[1756931527637,4.692e-05,112340.0,112330.0,0.43031745]
[1756931527808,4.692e-05,112340.0,112330.0,0.7901941]
[1756931528767,4.692e-05,112340.0,112330.0,0.43031745]
[1756931528970,4.692e-05,112340.0,112330.0,0.7901941]
[1756931531011,4.692e-05,112340.0,112330.0,0.43031745]
[1756931531254,0.00518692,112340.0,112330.0,0.27714745]
[1756931531463,0.36506357,112340.0,112330.0,0.27714745]
[1756931531683,0.72494022,112340.0,112330.0,0.35682745]
[1756931531897,0.36506357,112340.0,112330.0,0.35682745]
[1756931533925,0.36506357,112340.0,112330.0,0.33006682]
[1756931534770,0.54309454,112340.0,112330.0,0.33006682]
[1756931534987,0.36506357,112340.0,112330.0,0.33006682]
[1756931535720,0.36506357,112340.0,112330.0,0.33217682]
[1756931539183,0.36506357,112340.0,112330.0,0.18194682]
[1756931539395,0.36506357,112340.0,112330.0,0.33002682]
[1756931543337,0.36506357,112340.0,112330.0,0.33213682]
[1756931545603,0.36506357,112340.0,112330.0,0.33002682]
[1756931546167,0.36506357,112340.0,112330.0,0.18194682]
[1756931546401,0.36506357,112340.0,112330.0,0.33002682]
[1756931546961,0.36506357,112340.0,112330.0,0.33213682]
[1756931556542,0.90297119,112340.0,112330.0,0.0039]
[1756931556747,1.02481777,112340.0,112330.0,0.15198]
[1756931556950,1.05158268,112340.0,112330.0,0.15198]
[1756931557530,1.19966268,112340.0,112330.0,0.15198]
[1756931562811,1.05158268,112340.0,112330.0,0.15198]
[1756931563035,0.33182938,112340.0,112330.0,0.15198]
[1756931563258,1.05158268,112340.0,112330.0,0.15198]
[1756931563654,0.81176246,112340.0,112330.0,0.15198]
[1756931565105,0.95984246,112340.0,112330.0,0.15198]
[1756931565512,0.33182938,112340.0,112330.0,0.15198]
[1756931565776,0.81176246,112340.0,112330.0,0.15198]
[1756931569005,0.81176246,112340.0,112330.0,0.14527891]
[1756931569983,0.95984246,112340.0,112330.0,0.14527891]
[1756931570639,0.81176246,112340.0,112330.0,0.14527891]
[1756931570852,0.95984246,112340.0,112330.0,0.14527891]
[1756931571941,0.81176246,112340.0,112330.0,0.14527891]
[1756931572158,0.95984246,112340.0,112330.0,0.14527891]
[1756931572761,0.81176246,112340.0,112330.0,0.14527891]
[1756931572963,0.11872782,112340.0,112330.0,0.32844573]
[1756931573150,0.29898526,112340.0,112330.0,0.32844573]
[1756931573352,0.29885879,112340.0,112330.0,0.32844573]
[1756931574014,0.77879187,112340.0,112330.0,0.32844573]
[1756931574757,0.77879187,112340.0,112330.0,0.14742891]
[1756931578481,0.78172187,112340.0,112330.0,0.14742891]
[1756931581805,0.78172187,112340.0,112330.0,0.14527891]
[1756931582251,0.17804682,112330.0,112320.0,0.24649957]
[1756931582430,0.18027329,112330.0,112320.0,0.39457957]
[1756931582650,0.18237329,112330.0,112320.0,0.39672957]
[1756931582856,0.18014682,112330.0,112320.0,0.39672957]
[1756931583282,0.18307682,112330.0,112320.0,0.24649957]
[1756931583474,0.6630099,112330.0,112320.0,0.39457957]
[1756931583748,0.6600799,112330.0,112320.0,0.39672957]
[1756931584349,0.6630099,112330.0,112320.0,0.39972957]
[1756931584500,0.6600799,112330.0,112320.0,0.40072957]
[1756931586829,0.6600799,112330.0,112320.0,0.40369957]
[1756931587038,0.6630099,112330.0,112320.0,0.40072957]
[1756931587220,0.6630099,112330.0,112320.0,0.39857957]
[1756931587770,0.18014682,112330.0,112320.0,0.40369957]
[1756931589252,0.18014682,112330.0,112320.0,0.40072957]
[1756931589908,0.18014682,112330.0,112320.0,0.40379957]
[1756931593105,0.18014682,112330.0,112320.0,0.22574]
[1756931593295,0.18331682,112330.0,112320.0,0.39858267]
[1756931594198,0.6632499,112330.0,112320.0,0.40062267]
[1756931594825,0.6600799,112330.0,112320.0,0.40062267]
[1756931594982,0.6632499,112330.0,112320.0,0.40062267]
[1756931597052,0.6632499,112330.0,112320.0,0.25050267]
[1756931597210,0.6632499,112330.0,112320.0,0.39858267]
[1756931600114,0.6632499,112330.0,112320.0,0.004]
[1756931600335,0.84708188,112330.0,112320.0,0.004]
[1756931600553,0.93304391,112330.0,112320.0,0.004]
[1756931600776,0.95981105,112330.0,112320.0,0.15212]
[1756931601922,0.95981105,112330.0,112320.0,0.004]
[1756931602365,1.29981105,112330.0,112320.0,0.004]
[1756931602972,1.39172704,112330.0,112320.0,0.004]
[1756931603178,1.39172704,112330.0,112320.0,0.003]
[1756931603425,1.39172704,112330.0,112320.0,0.004]
[1756931603634,1.39172704,112330.0,112320.0,0.001]
[1756931603835,0.17806267,112320.0,112310.0,0.14816]
[1756931604007,0.75420821,112320.0,112310.0,0.14816]
[1756931604232,0.75515174,112320.0,112310.0,0.14816]
[1756931604539,0.17807853,112310.0,112300.0,0.28220623]
[1756931604750,0.17807853,112310.0,112300.0,0.43343623]
[1756931604951,0.17807853,112310.0,112300.0,0.43547623]
[1756931605706,0.180305,112310.0,112300.0,0.43547623]
[1756931605914,0.180305,112310.0,112300.0,0.43747623]
[1756931606796,0.180305,112310.0,112300.0,0.44147623]
[1756931609655,0.18904213,112310.0,112300.0,0.44147623]
[1756931609880,0.18681566,112310.0,112300.0,0.44147623]
[1756931616488,0.00873713,112310.0,112300.0,0.44147623]
[1756931616690,0.0109636,112310.0,112300.0,0.44147623]
[1756931616957,0.00222647,112310.0,112300.0,0.44147623]
[1756931620098,0.01110741,112310.0,112300.0,0.44147623]
[1756931620280,0.00222647,112310.0,112300.0,0.44147623]
[1756931621470,0.182255,112310.0,112300.0,0.29024623]
[1756931621676,0.18314853,112310.0,112300.0,0.43632623]
[1756931622197,0.18314853,112310.0,112300.0,0.43836623]
[1756931622395,0.18002853,112310.0,112300.0,0.43836623]
[1756931622603,0.182255,112310.0,112300.0,0.43836623]
[1756931622814,0.18002853,112310.0,112300.0,0.43836623]
[1756931624042,0.18909081,112310.0,112300.0,0.43836623]
[1756931624271,0.19221081,112310.0,112300.0,0.43632623]
[1756931624495,0.19221081,112310.0,112300.0,0.28820623]
[1756931624704,0.19221081,112310.0,112300.0,0.43632623]
[1756931624918,0.67214389,112310.0,112300.0,0.43632623]
[1756931625558,0.55229258,112310.0,112300.0,0.43632623]
[1756931626172,0.37421405,112310.0,112300.0,0.43632623]
[1756931626503,0.55229258,112310.0,112300.0,0.43632623]
[1756931627200,0.55229258,112310.0,112300.0,0.28134152]
[1756931627416,0.55229258,112310.0,112300.0,0.42742152]
[1756931630766,0.55229258,112310.0,112300.0,0.42946152]
[1756931632185,0.55229258,112310.0,112300.0,0.28134152]
[1756931632406,0.55229258,112310.0,112300.0,0.03276713]
[1756931632614,0.55229258,112310.0,112300.0,0.15412]
[1756931633036,0.57906346,112310.0,112300.0,0.15412]
[1756931633827,0.57906346,112310.0,112300.0,0.15212]
[1756931634041,1.0877938,112310.0,112300.0,0.14912]
[1756931634265,1.54893924,112310.0,112300.0,0.001]
[1756931634453,1.54893924,112310.0,112300.0,0.004]
[1756931634454,1.57231924,112310.0,112300.0,0.004]
[1756931634663,1.57231924,112310.0,112300.0,0.003]
[1756931635045,1.57231924,112310.0,112300.0,0.004]
[1756931635455,1.57235924,112310.0,112300.0,0.001]
[1756931636104,0.17811025,112290.0,112280.0,0.2166]
[1756931636377,0.54548849,112290.0,112280.0,0.2166]
[1756931636603,0.54326202,112290.0,112280.0,0.2166]
[1756931637176,0.54326202,112290.0,112280.0,0.2186]
[1756931637391,0.5433089,112290.0,112280.0,0.2226]
[1756931640279,0.5433089,112290.0,112280.0,0.40072611]
[1756931641161,4.688e-05,112290.0,112280.0,0.76578788]
[1756931641587,4.688e-05,112290.0,112280.0,0.79255946]